[Event "28th CRO-chT 1B-Men 2019"]
[Site "Mali Losinj"]
[Date "2019.10.05"]
[Round "8.10"]
[White "Trbojevic, Mladen"]
[Black "Muha, Miljenko"]
[Result "1-0"]
[ECO "C17"]
[WhiteElo "2338"]
[BlackElo "2322"]
[Annotator "ChessBase"]
[PlyCount "105"]
[EventDate "2019.09.28"]
[EventType "team-tourn"]
[EventCountry "CRO"]
[SourceTitle "playchess.com"]
[Source "ChessBase"]
[SourceQuality "1"]
[TimeControl "40/5400+30:1800+30"]

1. e4 {[%emt 0:00:30]} e6 {[%emt 0:00:30]} 2. d4 {[%emt 0:00:00]} d5 {[%emt 0:00:00]} 3. Nc3 {[%emt 0:00:00]} Bb4 {[%emt 0:00:00]} 4. e5 {[%emt 0:00:30]} c5 {[%emt 0:00:00]} 5. Bd2 {[%emt 0:02:30]} Ne7 {[%emt 0:01:00]} 6. a3 {[%emt 0:00:30]} Bxc3 {[%emt 0:00:00]} 7. Bxc3 {[%emt 0:00:00]} b6 {[%emt 0:01:00]} 8. Bb5+ {[%emt 0:00:00]} Bd7 {[%emt 0:00:30]} 9. Bd3 {[%emt 0:00:30]} Nbc6 {[%emt 0:00:00]} 10. Qg4 {[%emt 0:19:30]} cxd4 {[%emt 0:49:00]} 11. Bxd4 {[%emt 0:00:30]} h5 {[%emt 0:01:30]} 12. Qf4 {[%emt 0:01:30]} g5 {[%emt 0:01:30]} 13. Qe3 {[%emt 0:22:30]} Nxd4 {[%emt 0:02:30]} 14. Qxd4 {[%emt 0:00:30]} Nc6 {[%emt 0:02:30]} 15. Qe3 {[%emt 0:00:30]} Qc7 {[%emt 0:01:30]} 16. h4 {[%emt 0:00:00]} d4 {[%emt 0:09:30]} 17. Qxg5 {[%emt 0:09:00]} Qxe5+ {[%emt 0:01:30]} 18. Ne2 {[%emt 0:00:30]} Qa5+ {[%emt 0:09:07]} 19. Kf1 {[%emt 0:05:30]} Qxg5 {[%emt 0:03:20]} 20. hxg5 {[%emt 0:00:00]} Ke7 {[%emt 0:02:32]} 21. Ng3 {[%emt 0:06:00]} h4 {[%emt 0:02:20]} 22. Ne4 {[%emt 0:02:30]} Ne5 {[%emt 0:00:22]} 23. Re1 {[%emt 0:11:11]} Nxd3 {[%emt 0:02:17]} 24. cxd3 {[%emt 0:00:09]} Rac8 {[%emt 0:00:26]} 25. Nd2 {[%emt 0:10:38]} Bb5 {[%emt 0:01:08]} 26. Rh3 {[%emt 0:00:29]} Rc2 {[%emt 0:01:31]} 27. Nb3 {[%emt 0:00:10]} Rxb2 {[%emt 0:02:23]} 28. Nxd4 {[%emt 0:00:07]} Rd8 {[%emt 0:00:41]} 29. Re4 {[%emt 0:02:18]} Rc8 {[%emt 0:02:42]} 30. Kg1 {[%emt 0:01:31]} Rc1+ {[%emt 0:01:15]} 31. Kh2 {[%emt 0:00:03]} Rbb1 {[%emt 0:00:18]} 32. Rexh4 {[%emt 0:00:38]} Rh1+ {[%emt 0:00:07]} 33. Kg3 {[%emt 0:00:01]} Rxh3+ {[%emt 0:00:13]} 34. gxh3 {[%emt 0:02:58]} Bxd3 {[%emt 0:00:26]} 35. Nc6+ {[%emt 0:01:49]} Kd6 {[%emt 0:00:21]} 36. Rd4+ {[%emt 0:00:03]} Kxc6 {[%emt 0:00:30]} 37. Rxd3 {[%emt 0:00:00]} Rg1+ {[%emt 0:00:56]} 38. Kf4 {[%emt 0:00:08]} b5 {[%emt 0:00:11]} 39. h4 {[%emt 0:00:44]} Rh1 {[%emt 0:00:39]} 40. Kg4 {[%emt 0:00:00]} a5 {[%emt 0:00:00]} 41. h5 {[%emt 0:02:33]} b4 {[%emt 0:13:15]} 42. h6 {[%emt 0:02:30]} Rh2 {[%emt 0:19:30]} 43. Rf3 {[%emt 0:02:30]} Rg2+ {[%emt 0:01:09]} 44. Kf4 {[%emt 0:01:30]} Kd5 {[%emt 0:00:51]} 45. axb4 {[%emt 0:07:30]} axb4 {[%emt 0:00:01]} 46. Rh3 {[%emt 0:00:00]} b3 {[%emt 0:00:32]} 47. Rxb3 {[%emt 0:02:23]} e5+ {[%emt 0:00:23]} 48. Kf5 {[%emt 0:00:47]} Rxf2+ {[%emt 0:00:27]} 49. Kg4 {[%emt 0:00:02]} Rf4+ {[%emt 0:01:26]} 50. Kh5 {[%emt 0:00:53]} Ra4 {[%emt 0:00:02]} 51. h7 {[%emt 0:02:00]} Ra1 {[%emt 0:01:04]} 52. Kh6 {[%emt 0:01:34]} f5 {[%emt 0:00:22]} 53. g6 {[%emt 0:01:12]} 1-0

[Event "28th CRO-chT 1B-Men 2019"]
[Site "Mali Losinj"]
[Date "2019.10.05"]
[Round "8.11"]
[White "Rade, Miroslav"]
[Black "Vernacki, Srdjan"]
[Result "1/2-1/2"]
[ECO "B15"]
[WhiteElo "2390"]
[BlackElo "2318"]
[Annotator "NA"]
[PlyCount "73"]
[EventDate "2019.09.28"]
[EventType "team-tourn"]
[EventCountry "CRO"]
[SourceTitle "playchess.com"]
[Source "ChessBase"]
[SourceQuality "1"]
[TimeControl "40/5400+30:1800+30"]

1. e4 {[%emt 0:01:30]} c6 {[%emt 0:00:30]} 2. Nc3 {[%emt 0:00:30]} d5 {[%emt 0:00:00]} 3. Nf3 {[%emt 0:00:00]} dxe4 {[%emt 0:00:00]} 4. Nxe4 {[%emt 0:00:00]} Nf6 {[%emt 0:00:00]} 5. Nxf6+ {[%emt 0:00:30]} exf6 {[%emt 0:00:00]} 6. d4 {[%emt 0:00:00]} Bd6 {[%emt 0:00:30]} 7. Bd3 {[%emt 0:00:00]} O-O {[%emt 0:00:00]} 8. O-O {[%emt 0:00:30]} Re8 {[%emt 0:01:00]} 9. c3 {[%emt 0:16:30]} Nd7 {[%emt 0:00:00]} 10. Nd2 {[%emt 0:08:30]} Nf8 {[%emt 0:05:00]} 11. Ne4 {[%emt 0:00:30]} Bb8 {[%emt 0:00:30]} 12. Qf3 {[%emt 0:06:30]} Ng6 {[%emt 0:13:30]} 13. Bd2 {[%emt 0:09:30]} Qc7 {[%emt 0:04:30]} 14. Ng3 {[%emt 0:03:30]} Be6 {[%emt 0:01:30]} 15. Rfe1 {[%emt 0:01:30]} Qd7 {[%emt 0:01:30]} 16. Nf5 {[%emt 0:05:30]} Bc7 {[%emt 0:03:30]} 17. h4 $11 {[%emt 0:07:30]} Nf8 {[%emt 0:32:30]} 18. Ne3 {[%emt 0:00:00]} Rad8 {[%emt 0:01:30]} 19. b4 {[%emt 0:11:00]} Bb8 {[%emt 0:05:30]} 20. g3 {[%emt 0:01:30]} Qc8 {[%emt 0:03:30]} 21. h5 {[%emt 0:00:30]} Nd7 {[%emt 0:04:30]} 22. Bc2 {[%emt 0:04:30]} g6 {[%emt 0:01:30]} 23. Bb3 {[%emt 0:01:36]} f5 {[%emt 0:00:55]} 24. Ng2 {[%emt 0:02:32]} Bxb3 {[%emt 0:02:58]} 25. axb3 {[%emt 0:00:02]} Rxe1+ {[%emt 0:00:16]} 26. Nxe1 {[%emt 0:01:32]} Re8 {[%emt 0:00:25]} 27. Nd3 {[%emt 0:01:35]} Nf6 {[%emt 0:01:08]} 28. hxg6 {[%emt 0:00:06]} hxg6 {[%emt 0:00:13]} 29. Bf4 {[%emt 0:00:43]} Ng4 {[%emt 0:03:04]} 30. Bxb8 {[%emt 0:01:38]} Qxb8 {[%emt 0:00:01]} 31. Qf4 {[%emt 0:00:15]} Qxf4 {[%emt 0:04:23]} 32. Nxf4 {[%emt 0:00:02]} a6 {[%emt 0:00:04]} 33. Kf1 {[%emt 0:01:30]} Nf6 {[%emt 0:04:45]} 34. Re1 {[%emt 0:03:38]} Ne4 {[%emt 0:00:28]} 35. Re2 {[%emt 0:04:10]} Kf8 {[%emt 0:00:36]} 36. Rc2 {[%emt 0:00:06]} Ke7 {[%emt 0:01:37]} 37. Nd3 {[%emt 0:01:26]} 1/2-1/2

[Event "28th CRO-chT 1B-Men 2019"]
[Site "Mali Losinj"]
[Date "2019.10.05"]
[Round "8.12"]
[White "Tomasic, Roland"]
[Black "Polok, Kacper"]
[Result "0-1"]
[ECO "B33"]
[WhiteElo "2111"]
[BlackElo "2301"]
[Annotator "NA"]
[PlyCount "92"]
[EventDate "2019.09.28"]
[EventType "team-tourn"]
[EventCountry "CRO"]
[SourceTitle "playchess.com"]
[Source "ChessBase"]
[SourceQuality "1"]
[TimeControl "40/5400+30:1800+30"]

1. e4 {[%emt 0:03:30]} c5 {[%emt 0:01:30]} 2. Nf3 {[%emt 0:00:00]} Nc6 {[%emt 0:00:00]} 3. d4 {[%emt 0:00:00]} cxd4 {[%emt 0:00:00]} 4. Nxd4 {[%emt 0:00:30]} e5 {[%emt 0:00:30]} 5. Nb5 {[%emt 0:00:00]} d6 {[%emt 0:00:30]} 6. N1c3 {[%emt 0:00:00]} Nf6 {[%emt 0:01:30]} 7. Bg5 {[%emt 0:00:30]} a6 {[%emt 0:00:30]} 8. Na3 {[%emt 0:01:30]} b5 {[%emt 0:00:00]} 9. Nd5 {[%emt 0:01:30]} Be7 {[%emt 0:00:00]} 10. Bxf6 {[%emt 0:00:30]} Bxf6 {[%emt 0:00:30]} 11. c3 {[%emt 0:01:30]} Bg5 {[%emt 0:02:30]} 12. Nc2 {[%emt 0:01:30]} O-O {[%emt 0:00:30]} 13. h4 {[%emt 0:02:30]} Bh6 {[%emt 0:01:30]} 14. Nce3 {[%emt 0:01:30]} Bxe3 {[%emt 0:10:30]} 15. Nxe3 {[%emt 0:02:30]} Be6 {[%emt 0:00:30]} 16. Be2 {[%emt 0:05:30]} Ne7 {[%emt 0:07:30]} 17. Bg4 $11 {[%emt 0:08:30]} Qd7 {[%emt 0:16:30]} 18. Bxe6 {[%emt 0:02:30]} fxe6 {[%emt 0:06:30]} 19. g3 {[%emt 0:02:30]} d5 {[%emt 0:03:30]} 20. O-O {[%emt 0:10:30]} Rad8 {[%emt 0:06:30]} 21. exd5 {[%emt 0:04:30]} exd5 {[%emt 0:00:30]} 22. Qb3 {[%emt 0:01:30]} Kh8 {[%emt 0:00:30]} 23. a4 {[%emt 0:04:30]} d4 {[%emt 0:02:30]} 24. cxd4 {[%emt 0:00:00]} exd4 {[%emt 0:00:30]} 25. Ng2 {[%emt 0:00:00]} Ng6 {[%emt 0:02:30]} 26. axb5 {[%emt 0:00:30]} axb5 {[%emt 0:00:30]} 27. f4 {[%emt 0:07:30]} d3 {[%emt 0:04:30]} 28. Kh2 {[%emt 0:01:30]} Rf6 {[%emt 0:09:30]} 29. Ra5 {[%emt 0:03:30]} d2 {[%emt 0:01:30]} 30. Rd1 {[%emt 0:00:30]} Rd6 {[%emt 0:00:30]} 31. Rxb5 {[%emt 0:01:30]} Rd3 {[%emt 0:00:30]} 32. Qa4 {[%emt 0:05:30]} h6 {[%emt 0:01:30]} 33. f5 {[%emt 0:14:11]} Ne5 {[%emt 0:00:30]} 34. Ra5 {[%emt 0:13:55]} Qxf5 {[%emt 0:03:39]} 35. Rxe5 {[%emt 0:00:08]} Qxe5 {[%emt 0:00:27]} 36. Nf4 {[%emt 0:00:04]} R3d6 {[%emt 0:03:57]} 37. Qc2 {[%emt 0:00:41]} Qe3 {[%emt 0:03:08]} 38. h5 {[%emt 0:00:56]} Rf8 {[%emt 0:02:26]} 39. Rf1 {[%emt 0:00:53]} Rxf4 {[%emt 0:02:54]} 40. Rxf4 {[%emt 0:00:00]} Qe2+ {[%emt 0:00:00]} 41. Kh3 {[%emt 0:01:42]} Qxh5+ {[%emt 0:01:29]} 42. Kg2 {[%emt 0:00:30]} Qd5+ {[%emt 0:00:30]} 43. Kh3 {[%emt 0:00:30]} Qh1+ {[%emt 0:00:30]} 44. Kg4 {[%emt 0:00:30]} d1=Q+ {[%emt 0:00:30]} 45. Qxd1 {[%emt 0:00:00]} Qxd1+ {[%emt 0:00:00]} 46. Kh3 {[%emt 0:00:00]} Qh5+ {[%emt 0:00:00]} 0-1

[Event "28th CRO-chT 1B-Men 2019"]
[Site "Mali Losinj"]
[Date "2019.10.05"]
[Round "8.13"]
[White "Djukic, Nikola"]
[Black "Nagy, Gabor"]
[Result "1/2-1/2"]
[ECO "C84"]
[WhiteElo "2517"]
[BlackElo "2476"]
[Annotator "ChessBase"]
[PlyCount "55"]
[EventDate "2019.09.28"]
[EventType "team-tourn"]
[EventCountry "CRO"]
[SourceTitle "playchess.com"]
[Source "ChessBase"]
[SourceQuality "1"]
[TimeControl "40/5400+30:1800+30"]

1. e4 {[%emt 0:00:30]} e5 {[%emt 0:00:30]} 2. Nf3 {[%emt 0:00:00]} Nc6 {[%emt 0:00:30]} 3. Bb5 {[%emt 0:00:00]} a6 {[%emt 0:00:30]} 4. Ba4 {[%emt 0:00:00]} Nf6 {[%emt 0:00:30]} 5. O-O {[%emt 0:00:00]} b5 {[%emt 0:00:30]} 6. Bb3 {[%emt 0:00:30]} Bb7 {[%emt 0:00:00]} 7. d3 {[%emt 0:00:00]} Be7 {[%emt 0:00:00]} 8. Nc3 {[%emt 0:01:00]} O-O {[%emt 0:00:30]} 9. Nd5 {[%emt 0:01:30]} Na5 {[%emt 0:01:30]} 10. Nxe7+ {[%emt 0:00:30]} Qxe7 {[%emt 0:00:00]} 11. Nh4 {[%emt 0:00:30]} Nxb3 {[%emt 0:00:00]} 12. Nf5 {[%emt 0:01:30]} Qe6 {[%emt 0:00:30]} 13. axb3 {[%emt 0:00:00]} d5 {[%emt 0:00:00]} 14. f3 {[%emt 0:00:00]} Ne8 {[%emt 0:01:00]} 15. Be3 {[%emt 0:02:30]} Nd6 {[%emt 0:01:30]} 16. Bc5 {[%emt 0:00:30]} Rfd8 {[%emt 0:00:00]} 17. Bxd6 {[%emt 0:04:30]} cxd6 {[%emt 0:00:00]} 18. Qd2 {[%emt 0:00:30]} f6 {[%emt 0:00:30]} 19. Rae1 {[%emt 0:16:30]} Kh8 {[%emt 0:04:30]} 20. Qf2 {[%emt 0:07:30]} Rd7 {[%emt 0:08:30]} 21. b4 {[%emt 0:14:30]} dxe4 {[%emt 0:09:30]} 22. fxe4 {[%emt 0:00:30]} d5 {[%emt 0:00:00]} 23. c3 {[%emt 0:20:30]} dxe4 {[%emt 0:03:00]} 24. dxe4 {[%emt 0:00:00]} Rad8 {[%emt 0:00:00]} 25. h3 {[%emt 0:02:00]} Rd2 {[%emt 0:08:00]} 26. Re2 {[%emt 0:00:30]} Rxe2 {[%emt 0:00:30]} 27. Qxe2 {[%emt 0:00:30]} Rd7 {[%emt 0:05:30]} 28. Qe3 {[%emt 0:08:30]} 1/2-1/2

[Event "28th CRO-chT 1B-Men 2019"]
[Site "Mali Losinj"]
[Date "2019.10.05"]
[Round "8.14"]
[White "Srbis, Jurica"]
[Black "Bogut, Zeljko"]
[Result "1-0"]
[ECO "A65"]
[WhiteElo "2449"]
[BlackElo "2386"]
[Annotator "ChessBase"]
[PlyCount "121"]
[EventDate "2019.09.28"]
[EventType "team-tourn"]
[EventCountry "CRO"]
[SourceTitle "playchess.com"]
[Source "ChessBase"]
[SourceQuality "1"]
[TimeControl "40/5400+30:1800+30"]

1. d4 {[%emt 0:00:30]} Nf6 {[%emt 0:01:30]} 2. c4 {[%emt 0:00:00]} c5 {[%emt 0:00:30]} 3. d5 {[%emt 0:00:00]} e6 {[%emt 0:00:00]} 4. Nc3 {[%emt 0:00:00]} exd5 {[%emt 0:00:00]} 5. cxd5 {[%emt 0:00:00]} d6 {[%emt 0:00:30]} 6. e4 {[%emt 0:00:30]} a6 {[%emt 0:00:30]} 7. f4 {[%emt 0:02:30]} b5 {[%emt 0:02:30]} 8. e5 {[%emt 0:00:30]} Bg4 {[%emt 0:22:30]} 9. Be2 {[%emt 0:08:30]} Bxe2 {[%emt 0:01:30]} 10. Ngxe2 {[%emt 0:00:30]} b4 {[%emt 0:00:30]} 11. exf6 {[%emt 0:00:30]} bxc3 {[%emt 0:00:30]} 12. fxg7 {[%emt 0:00:30]} Bxg7 {[%emt 0:00:30]} 13. Nxc3 {[%emt 0:00:00]} Qh4+ {[%emt 0:00:30]} 14. g3 {[%emt 0:00:00]} Qh3 {[%emt 0:00:30]} 15. Be3 {[%emt 0:02:30]} Qg2 {[%emt 0:04:30]} 16. Qa4+ {[%emt 0:00:30]} Nd7 {[%emt 0:00:30]} 17. Qe4+ {[%emt 0:01:30]} Qxe4 {[%emt 0:00:30]} 18. Nxe4 {[%emt 0:00:30]} Ke7 {[%emt 0:05:30]} 19. O-O-O {[%emt 0:02:30]} Rab8 {[%emt 0:06:30]} 20. Rd2 {[%emt 0:00:30]} Rb4 {[%emt 0:00:30]} 21. Nf2 {[%emt 0:02:30]} Rhb8 {[%emt 0:00:30]} 22. Re1 {[%emt 0:00:30]} Kd8 {[%emt 0:10:30]} 23. Nd3 {[%emt 0:02:30]} R4b5 {[%emt 0:01:30]} 24. Rc2 {[%emt 0:03:30]} Nb6 {[%emt 0:04:30]} 25. Rd1 {[%emt 0:00:30]} Ke7 {[%emt 0:04:30]} 26. Nf2 {[%emt 0:06:30]} Kd7 {[%emt 0:01:30]} 27. Rdd2 {[%emt 0:02:30]} Rb4 {[%emt 0:04:30]} 28. Nd3 {[%emt 0:03:30]} Re4 {[%emt 0:05:30]} 29. Bg1 {[%emt 0:15:30]} f5 {[%emt 0:10:30]} 30. b3 {[%emt 0:02:30]} a5 {[%emt 0:01:27]} 31. Bxc5 {[%emt 0:00:30]} dxc5 {[%emt 0:02:44]} 32. Nxc5+ {[%emt 0:00:30]} Kd6 {[%emt 0:00:00]} 33. Nxe4+ {[%emt 0:01:30]} fxe4 {[%emt 0:00:13]} 34. Rc6+ {[%emt 0:00:30]} Kd7 {[%emt 0:00:12]} 35. Re6 {[%emt 0:00:30]} Bc3 {[%emt 0:07:24]} 36. Rd1 {[%emt 0:01:30]} Nxd5 {[%emt 0:00:29]} 37. f5 {[%emt 0:04:30]} Rb5 {[%emt 0:00:13]} 38. Rxe4 {[%emt 0:00:30]} Kd6 {[%emt 0:00:17]} 39. Re6+ {[%emt 0:00:00]} Kc5 {[%emt 0:00:00]} 40. Re8 {[%emt 0:00:00]} Bf6 {[%emt 0:00:00]} 41. Rc8+ {[%emt 0:06:30]} Kd6 {[%emt 0:04:01]} 42. Re1 {[%emt 0:02:30]} Bg5+ {[%emt 0:05:30]} 43. Kb1 {[%emt 0:00:30]} a4 {[%emt 0:00:30]} 44. Re6+ {[%emt 0:09:30]} Kd7 {[%emt 0:00:30]} 45. Rg8 {[%emt 0:00:30]} Bf6 {[%emt 0:07:56]} 46. Ra8 {[%emt 0:06:30]} Bd4 {[%emt 0:04:00]} 47. Rh6 {[%emt 0:05:30]} axb3 {[%emt 0:01:49]} 48. Rxh7+ {[%emt 0:00:30]} Kd6 {[%emt 0:00:20]} 49. axb3 {[%emt 0:00:30]} Rxb3+ {[%emt 0:00:44]} 50. Kc2 {[%emt 0:00:30]} Rc3+ {[%emt 0:02:27]} 51. Kd2 {[%emt 0:00:00]} Be3+ {[%emt 0:08:27]} 52. Ke2 {[%emt 0:00:00]} Bg5 {[%emt 0:00:57]} 53. Re8 {[%emt 0:05:30]} Nf6 {[%emt 0:01:06]} 54. Re6+ {[%emt 0:00:30]} Kd5 {[%emt 0:00:00]} 55. Rg7 {[%emt 0:01:30]} Rc2+ {[%emt 0:00:50]} 56. Kf3 {[%emt 0:00:30]} Bh6 {[%emt 0:01:10]} 57. Rg6 {[%emt 0:00:30]} Rc3+ {[%emt 0:00:52]} 58. Kg2 {[%emt 0:00:30]} Rc2+ {[%emt 0:00:39]} 59. Kh3 {[%emt 0:00:30]} Ne4 {[%emt 0:00:34]} 60. Rxh6 {[%emt 0:00:30]} Ng5+ {[%emt 0:00:33]} 61. Kg4 {[%emt 0:00:30]} 1-0

[Event "28th CRO-chT 1B-Men 2019"]
[Site "Mali Losinj"]
[Date "2019.10.05"]
[Round "8.15"]
[White "Galic, Ivan"]
[Black "Cop, Tomislav"]
[Result "1-0"]
[ECO "E81"]
[WhiteElo "2414"]
[BlackElo "2349"]
[Annotator "ChessBase"]
[PlyCount "51"]
[EventDate "2019.09.28"]
[EventType "team-tourn"]
[EventCountry "CRO"]
[SourceTitle "playchess.com"]
[Source "ChessBase"]
[SourceQuality "1"]
[TimeControl "40/5400+30:1800+30"]

1. d4 {[%emt 0:00:30]} Nf6 {[%emt 0:00:30]} 2. c4 {[%emt 0:00:00]} g6 {[%emt 0:00:00]} 3. Nc3 {[%emt 0:00:00]} Bg7 {[%emt 0:00:00]} 4. e4 {[%emt 0:00:30]} d6 {[%emt 0:00:00]} 5. f3 {[%emt 0:00:30]} O-O {[%emt 0:00:00]} 6. Nge2 {[%emt 0:00:30]} Nbd7 {[%emt 0:02:30]} 7. Be3 {[%emt 0:02:30]} c5 {[%emt 0:00:30]} 8. Qd2 {[%emt 0:03:30]} a6 {[%emt 0:01:30]} 9. dxc5 {[%emt 0:01:30]} dxc5 {[%emt 0:02:30]} 10. Rd1 {[%emt 0:00:30]} Qc7 {[%emt 0:04:30]} 11. Nf4 {[%emt 0:00:30]} e6 {[%emt 0:05:30]} 12. Nd3 {[%emt 0:00:30]} b6 {[%emt 0:06:30]} 13. Bf4 {[%emt 0:00:30]} e5 {[%emt 0:10:30]} 14. Bg5 {[%emt 0:00:30]} Bb7 {[%emt 0:00:30]} 15. Be2 {[%emt 0:02:30]} Rfe8 {[%emt 0:06:30]} 16. Nd5 {[%emt 0:11:30]} Qd6 {[%emt 0:08:30]} 17. b4 {[%emt 0:13:30]} Bxd5 {[%emt 0:12:30]} 18. bxc5 {[%emt 0:00:30]} Nxc5 {[%emt 0:00:30]} 19. Nxc5 {[%emt 0:02:30]} Qxc5 {[%emt 0:06:30]} 20. cxd5 {[%emt 0:00:30]} Rec8 {[%emt 0:00:30]} 21. Be3 {[%emt 0:02:30]} Qd6 {[%emt 0:03:30]} 22. O-O {[%emt 0:02:30]} Nd7 {[%emt 0:00:00]} 23. Rc1 {[%emt 0:04:30]} b5 {[%emt 0:03:00]} 24. Rc2 {[%emt 0:01:30]} Nc5 {[%emt 0:05:43]} 25. Rfc1 {[%emt 0:02:30]} Bf8 {[%emt 0:00:25]} 26. Rxc5 {[%emt 0:00:00]} 1-0

[Event "28th CRO-chT 1B-Men 2019"]
[Site "Mali Losinj"]
[Date "2019.10.05"]
[Round "8.16"]
[White "Petrusic, Toni"]
[Black "Bender, Ivan"]
[Result "1-0"]
[ECO "B11"]
[WhiteElo "2272"]
[BlackElo "2234"]
[Annotator "NA"]
[PlyCount "55"]
[EventDate "2019.09.28"]
[EventType "team-tourn"]
[EventCountry "CRO"]
[SourceTitle "playchess.com"]
[Source "ChessBase"]
[SourceQuality "1"]
[TimeControl "40/5400+30:1800+30"]

1. e4 {[%emt 0:00:30]} c6 {[%emt 0:00:30]} 2. Nc3 {[%emt 0:00:00]} d5 {[%emt 0:00:00]} 3. Nf3 {[%emt 0:00:00]} Bg4 {[%emt 0:02:00]} 4. h3 {[%emt 0:00:00]} Bxf3 {[%emt 0:00:30]} 5. Qxf3 {[%emt 0:00:00]} e6 {[%emt 0:00:30]} 6. d3 {[%emt 0:00:30]} Nd7 {[%emt 0:04:30]} 7. Bd2 {[%emt 0:00:30]} Bd6 {[%emt 0:02:30]} 8. g4 {[%emt 0:02:30]} Qf6 {[%emt 0:01:30]} 9. Qxf6 {[%emt 0:13:30]} Ngxf6 $11 {[%emt 0:02:30]} 10. f4 {[%emt 0:27:30]} dxe4 {[%emt 0:07:30]} 11. Nxe4 {[%emt 0:00:30]} Nxe4 {[%emt 0:00:30]} 12. dxe4 {[%emt 0:00:30]} e5 {[%emt 0:00:30]} 13. f5 {[%emt 0:00:30]} Nc5 {[%emt 0:03:30]} 14. Bg2 {[%emt 0:00:00]} a5 {[%emt 0:37:30]} 15. O-O-O {[%emt 0:07:00]} Be7 {[%emt 0:04:30]} 16. g5 {[%emt 0:10:30]} f6 {[%emt 0:08:30]} 17. h4 {[%emt 0:00:30]} Kf7 {[%emt 0:00:30]} 18. Bf3 {[%emt 0:05:30]} Rhd8 {[%emt 0:00:30]} 19. Be3 {[%emt 0:03:30]} b6 {[%emt 0:02:39]} 20. Rdg1 {[%emt 0:02:30]} Bf8 {[%emt 0:04:04]} 21. g6+ {[%emt 0:07:27]} Kg8 {[%emt 0:11:38]} 22. gxh7+ {[%emt 0:00:37]} Kh8 {[%emt 0:00:18]} 23. h5 {[%emt 0:02:21]} Rd7 {[%emt 0:02:41]} 24. h6 {[%emt 0:05:12]} Raa7 {[%emt 0:00:13]} 25. Rg6 {[%emt 0:00:55]} Rab7 {[%emt 0:01:02]} 26. hxg7+ {[%emt 0:04:29]} Bxg7 {[%emt 0:00:12]} 27. Bh6 {[%emt 0:00:25]} Rd6 {[%emt 0:01:06]} 28. Bxg7+ {[%emt 0:00:06]} 1-0

[Event "28th CRO-chT 1B-Men 2019"]
[Site "Mali Losinj"]
[Date "2019.10.05"]
[Round "8.17"]
[White "Levacic, Patrick"]
[Black "Mihalincic, Tomislav"]
[Result "1/2-1/2"]
[ECO "A05"]
[WhiteElo "2245"]
[BlackElo "2252"]
[Annotator "ChessBase"]
[PlyCount "27"]
[EventDate "2019.09.28"]
[EventType "team-tourn"]
[EventCountry "CRO"]
[SourceTitle "playchess.com"]
[Source "ChessBase"]
[SourceQuality "1"]
[TimeControl "40/5400+30:1800+30"]

1. Nf3 {[%emt 0:00:30]} Nf6 {[%emt 0:00:30]} 2. g3 {[%emt 0:00:00]} g6 {[%emt 0:01:30]} 3. Bg2 {[%emt 0:01:00]} Bg7 {[%emt 0:00:30]} 4. O-O {[%emt 0:00:30]} O-O {[%emt 0:00:30]} 5. d3 {[%emt 0:02:30]} d6 {[%emt 0:00:30]} 6. e4 {[%emt 0:02:30]} e5 {[%emt 0:00:30]} 7. Nbd2 {[%emt 0:04:30]} Nc6 {[%emt 0:09:30]} 8. c3 {[%emt 0:07:30]} d5 {[%emt 0:06:30]} 9. Qe2 {[%emt 0:13:30]} Re8 {[%emt 0:03:30]} 10. Rd1 {[%emt 0:01:30]} h6 {[%emt 0:02:30]} 11. b3 {[%emt 0:05:30]} a5 {[%emt 0:16:30]} 12. a3 {[%emt 0:00:30]} b6 {[%emt 0:03:30]} 13. Bb2 {[%emt 0:00:30]} Ba6 {[%emt 0:00:30]} 14. c4 {[%emt 0:00:30]} 1/2-1/2

[Event "28th CRO-chT 1B-Men 2019"]
[Site "Mali Losinj"]
[Date "2019.10.05"]
[Round "8.18"]
[White "Blagojevic, Marijan"]
[Black "Ivankovic, Ivo"]
[Result "1-0"]
[ECO "A31"]
[WhiteElo "2196"]
[BlackElo "2054"]
[Annotator "NA"]
[PlyCount "97"]
[EventDate "2019.09.28"]
[EventType "team-tourn"]
[EventCountry "CRO"]
[SourceTitle "playchess.com"]
[Source "ChessBase"]
[SourceQuality "1"]
[TimeControl "40/5400+30:1800+30"]

1. d4 {[%emt 0:00:30]} Nf6 {[%emt 0:00:30]} 2. c4 {[%emt 0:00:00]} c5 {[%emt 0:00:00]} 3. Nf3 {[%emt 0:00:00]} cxd4 {[%emt 0:00:00]} 4. Nxd4 {[%emt 0:00:30]} e5 {[%emt 0:00:30]} 5. Nb5 {[%emt 0:00:00]} d5 {[%emt 0:00:30]} 6. cxd5 {[%emt 0:00:00]} Qa5+ {[%emt 0:00:30]} 7. N5c3 {[%emt 0:00:30]} b5 {[%emt 0:00:30]} 8. Nd2 {[%emt 0:15:30]} b4 {[%emt 0:00:30]} 9. Nce4 {[%emt 0:09:30]} Nxe4 {[%emt 0:11:30]} 10. Nxe4 {[%emt 0:00:30]} Bb7 {[%emt 0:00:30]} 11. Ng3 {[%emt 0:09:30]} Bxd5 {[%emt 0:05:30]} 12. e4 {[%emt 0:00:30]} Be6 {[%emt 0:01:30]} 13. Bd2 {[%emt 0:06:30]} Bc5 {[%emt 0:09:30]} 14. Be2 {[%emt 0:01:30]} O-O {[%emt 0:05:30]} 15. O-O {[%emt 0:00:30]} Qb6 {[%emt 0:05:30]} 16. Bg4 {[%emt 0:06:30]} Nc6 {[%emt 0:11:30]} 17. Rc1 {[%emt 0:09:30]} Nd4 {[%emt 0:03:30]} 18. Bxe6 {[%emt 0:01:30]} fxe6 {[%emt 0:04:30]} 19. Be3 {[%emt 0:05:30]} Rf6 {[%emt 0:06:30]} 20. Kh1 {[%emt 0:02:30]} Raf8 {[%emt 0:05:30]} 21. Qd3 {[%emt 0:03:30]} Rd8 {[%emt 0:02:30]} 22. Qc4 {[%emt 0:04:30]} Be7 {[%emt 0:01:30]} 23. Nf5 {[%emt 0:02:30]} Bf8 {[%emt 0:08:29]} 24. Nxd4 {[%emt 0:01:07]} exd4 {[%emt 0:01:34]} 25. Bg5 {[%emt 0:00:17]} Kh8 {[%emt 0:03:21]} 26. Qc7 {[%emt 0:01:37]} Re8 {[%emt 0:01:38]} 27. Qxb6 {[%emt 0:00:24]} axb6 {[%emt 0:00:00]} 28. Bxf6 {[%emt 0:00:51]} gxf6 {[%emt 0:00:02]} 29. Rfd1 {[%emt 0:00:16]} Bc5 {[%emt 0:00:12]} 30. Rc2 {[%emt 0:02:09]} Ra8 {[%emt 0:00:12]} 31. b3 {[%emt 0:00:30]} e5 {[%emt 0:00:54]} 32. g3 {[%emt 0:01:32]} Kg7 {[%emt 0:01:46]} 33. Kg2 {[%emt 0:00:04]} Kf7 {[%emt 0:00:08]} 34. f4 {[%emt 0:01:03]} Rg8 {[%emt 0:01:03]} 35. fxe5 {[%emt 0:00:19]} fxe5 {[%emt 0:00:02]} 36. Rf2+ {[%emt 0:01:28]} Ke6 {[%emt 0:00:02]} 37. Rf5 {[%emt 0:00:40]} Rg4 {[%emt 0:00:48]} 38. Kf3 {[%emt 0:00:16]} Rg6 {[%emt 0:00:07]} 39. Rd2 {[%emt 0:00:36]} h6 {[%emt 0:00:46]} 40. g4 {[%emt 0:00:00]} Kd6 {[%emt 0:00:00]} 41. h4 {[%emt 0:05:51]} Ke6 {[%emt 0:03:26]} 42. Rh2 {[%emt 0:01:30]} Be7 {[%emt 0:00:30]} 43. Rc2 {[%emt 0:01:30]} Bc5 {[%emt 0:00:00]} 44. g5 {[%emt 0:01:30]} h5 {[%emt 0:03:00]} 45. Ke2 {[%emt 0:02:30]} Kd6 {[%emt 0:00:00]} 46. Kd3 {[%emt 0:00:30]} Ke6 {[%emt 0:00:00]} 47. Rcf2 {[%emt 0:00:00]} Be7 {[%emt 0:00:30]} 48. Rc2 {[%emt 0:01:00]} Bc5 {[%emt 0:00:30]} 49. Rc1 {[%emt 0:00:30]} 1-0